[Event "Titled Tuesday Blitz June 28 Early 2022"]
[White "Barria Zuniga, Daniel"]
[Black "Dudzinski, Pawel"]
[WhiteFideId "3400816"]
[BlackFideId "1117890"]
[WhiteElo "2414"]
[BlackElo "2011"]
[Result "1-0"]
[Round "04"]
[TimeControl "180+1"]
[Date "2022.06.28"]
[WhiteClock "0:00:49"]
[BlackClock "0:00:04"]

1. d4 {[%clk 0:03:00]}  d5 {[%clk 0:02:53]} 2. c4 {[%clk 0:03:00]}  e6 {[%clk 0:02:50]} 3. Nf3 {[%clk 0:03:00]}  c6 {[%clk 0:02:44]} 4. Nc3 {[%clk 0:02:59]}  f5 {[%clk 0:02:42]} 5. Bg5 {[%clk 0:02:56]}  Nf6 {[%clk 0:02:41]} 6. e3 {[%clk 0:02:56]}  h6 {[%clk 0:02:38]} 7. Bxf6 {[%clk 0:02:51]}  Qxf6 {[%clk 0:02:37]} 8. Be2 {[%clk 0:02:52]}  Bd6 {[%clk 0:02:33]} 9. O-O {[%clk 0:02:52]}  O-O {[%clk 0:02:31]} 10. Rb1 {[%clk 0:02:48]}  g5 {[%clk 0:02:30]} 11. b4 {[%clk 0:02:47]}  g4 {[%clk 0:02:29]} 12. Ne1 {[%clk 0:02:44]}  a6 {[%clk 0:02:13]} 13. a4 {[%clk 0:02:42]}  Bd7 {[%clk 0:02:01]} 14. Nd3 {[%clk 0:02:16]}  dxc4 {[%clk 0:01:41]} 15. Ne5 {[%clk 0:02:14]}  b5 {[%clk 0:01:32]} 16. f4 {[%clk 0:02:05]}  gxf3 {[%clk 0:01:11]} 17. Bxf3 {[%clk 0:02:02]}  Bxe5 {[%clk 0:01:06]} 18. dxe5 {[%clk 0:02:01]}  Qxe5 {[%clk 0:01:07]} 19. Qd4 {[%clk 0:01:48]}  Qxd4 {[%clk 0:01:05]} 20. exd4 {[%clk 0:01:49]}  a5 {[%clk 0:00:47]} 21. axb5 {[%clk 0:01:41]}  axb4 {[%clk 0:00:46]} 22. Rxb4 {[%clk 0:01:40]}  Ra3 {[%clk 0:00:41]} 23. Rc1 {[%clk 0:01:25]}  cxb5 {[%clk 0:00:37]} 24. Nxb5 {[%clk 0:01:25]}  Na6 {[%clk 0:00:23]} 25. Rbb1 {[%clk 0:01:20]}  Bxb5 {[%clk 0:00:19]} 26. Rxb5 {[%clk 0:01:15]}  c3 {[%clk 0:00:18]} 27. Bb7 {[%clk 0:01:08]}  Nc7 {[%clk 0:00:18]} 28. Rc5 {[%clk 0:01:06]}  Nd5 {[%clk 0:00:18]} 29. Bxd5 {[%clk 0:00:57]}  exd5 {[%clk 0:00:19]} 30. R1xc3 {[%clk 0:00:58]}  Rxc3 {[%clk 0:00:18]} 31. Rxc3 {[%clk 0:00:58]}  Kf7 {[%clk 0:00:05]} 32. Rc6 {[%clk 0:00:56]}  Re8 {[%clk 0:00:02]} 33. Rd6 {[%clk 0:00:50]}  Re2 {[%clk 0:00:02]} 34. Rxd5 {[%clk 0:00:49]}  Ke6 {[%clk 0:00:03]} 35. Rd8 {[%clk 0:00:49]}  h5 {[%clk 0:00:04]} 36. Re8+ {[%clk 0:00:49]} 1-0


[Site "https://www.chess.com"]

[Event "Titled Tuesday Blitz June 28 Early 2022"]
[White "Bettalli, Francesco"]
[Black "Seo, Jung Min"]
[WhiteFideId "2816453"]
[BlackFideId "1734687"]
[WhiteElo "2216"]
[BlackElo "2414"]
[Result "0-1"]
[Round "04"]
[TimeControl "180+1"]
[Date "2022.06.28"]
[WhiteClock "0:00:32"]
[BlackClock "0:00:58"]

1. d4 {[%clk 0:03:00]}  Nf6 {[%clk 0:02:59]} 2. Nc3 {[%clk 0:03:01]}  d5 {[%clk 0:02:59]} 3. Bf4 {[%clk 0:03:01]}  a6 {[%clk 0:02:58]} 4. e3 {[%clk 0:03:01]}  Bf5 {[%clk 0:02:56]} 5. f3 {[%clk 0:03:01]}  e6 {[%clk 0:02:56]} 6. g4 {[%clk 0:03:01]}  Bg6 {[%clk 0:02:56]} 7. h4 {[%clk 0:03:02]}  h6 {[%clk 0:02:56]} 8. Bd3 {[%clk 0:03:01]}  Bxd3 {[%clk 0:02:56]} 9. Qxd3 {[%clk 0:03:02]}  c5 {[%clk 0:02:56]} 10. Nge2 {[%clk 0:03:01]}  Nc6 {[%clk 0:02:54]} 11. a3 {[%clk 0:02:57]}  Rc8 {[%clk 0:02:53]} 12. O-O-O {[%clk 0:02:56]}  cxd4 {[%clk 0:02:48]} 13. exd4 {[%clk 0:02:56]}  Bd6 {[%clk 0:02:48]} 14. g5 {[%clk 0:02:54]}  Nh5 {[%clk 0:02:48]} 15. Bxd6 {[%clk 0:02:54]}  Qxd6 {[%clk 0:02:48]} 16. g6 {[%clk 0:02:54]}  f5 {[%clk 0:02:45]} 17. Rde1 {[%clk 0:02:52]}  O-O {[%clk 0:02:44]} 18. Qe3 {[%clk 0:02:51]}  Rce8 {[%clk 0:02:42]} 19. f4 {[%clk 0:02:50]}  Nf6 {[%clk 0:02:41]} 20. h5 {[%clk 0:02:49]}  Ne4 {[%clk 0:02:38]} 21. Ng3 {[%clk 0:02:48]}  b5 {[%clk 0:02:35]} 22. Ncxe4 {[%clk 0:02:47]}  fxe4 {[%clk 0:02:34]} 23. Ref1 {[%clk 0:02:47]}  Ne7 {[%clk 0:02:34]} 24. Rh2 {[%clk 0:02:41]}  a5 {[%clk 0:02:32]} 25. Rhf2 {[%clk 0:02:40]}  Nf5 {[%clk 0:02:32]} 26. Nxf5 {[%clk 0:02:40]}  Rxf5 {[%clk 0:02:32]} 27. Qe2 {[%clk 0:02:41]}  Qb6 {[%clk 0:02:26]} 28. Kb1 {[%clk 0:02:37]}  b4 {[%clk 0:02:25]} 29. a4 {[%clk 0:02:38]}  Qxd4 {[%clk 0:02:16]} 30. Qb5 {[%clk 0:02:38]}  Ra8 {[%clk 0:02:13]} 31. Qc6 {[%clk 0:02:35]}  Raf8 {[%clk 0:02:08]} 32. Qxe6+ {[%clk 0:02:35]}  Kh8 {[%clk 0:02:08]} 33. Qa6 {[%clk 0:02:31]}  e3 {[%clk 0:02:01]} 34. Re2 {[%clk 0:02:31]}  Qc5 {[%clk 0:02:02]} 35. Qe6 {[%clk 0:02:20]}  d4 {[%clk 0:01:59]} 36. Qe4 {[%clk 0:02:18]}  Rxh5 {[%clk 0:01:57]} 37. Rd1 {[%clk 0:02:15]}  Rd5 {[%clk 0:01:42]} 38. Rxe3 {[%clk 0:02:13]}  Rd6 {[%clk 0:01:35]} 39. Red3 {[%clk 0:02:09]}  Qf5 {[%clk 0:01:32]} 40. Qxf5 {[%clk 0:02:01]}  Rxf5 {[%clk 0:01:32]} 41. Rxd4 {[%clk 0:01:59]}  Rxg6 {[%clk 0:01:31]} 42. Rd5 {[%clk 0:01:59]}  Rgf6 {[%clk 0:01:31]} 43. Re5 {[%clk 0:01:53]}  Rxe5 {[%clk 0:01:12]} 44. fxe5 {[%clk 0:01:54]}  Re6 {[%clk 0:01:13]} 45. Rd5 {[%clk 0:01:12]}  h5 {[%clk 0:01:10]} 46. Rxa5 {[%clk 0:01:11]}  h4 {[%clk 0:01:10]} 47. Rd5 {[%clk 0:01:06]}  g5 {[%clk 0:01:08]} 48. a5 {[%clk 0:00:53]}  h3 {[%clk 0:01:07]} 49. Rd2 {[%clk 0:00:35]}  g4 {[%clk 0:01:04]} 50. Ka2 {[%clk 0:00:35]}  g3 {[%clk 0:01:03]} 51. Rd3 {[%clk 0:00:35]}  h2 {[%clk 0:01:01]} 52. Rxg3 {[%clk 0:00:33]}  h1=Q {[%clk 0:01:00]} 53. Kb3 {[%clk 0:00:32]}  Qe4 {[%clk 0:00:58]} 0-1


[Site "https://www.chess.com"]

[Event "Titled Tuesday Blitz June 28 Early 2022"]
[White "Bluebaum, Matthias"]
[Black "Andreikin, Dmitry"]
[WhiteFideId "24651516"]
[BlackFideId "4158814"]
[WhiteElo "2556"]
[BlackElo "2736"]
[Result "0-1"]
[Round "04"]
[TimeControl "180+1"]
[Date "2022.06.28"]
[WhiteClock "0:00:08"]
[BlackClock "0:00:52"]

1. d4 {[%clk 0:03:00]}  d5 {[%clk 0:03:00]} 2. c4 {[%clk 0:02:58]}  e6 {[%clk 0:03:00]} 3. Nc3 {[%clk 0:02:58]}  Nf6 {[%clk 0:03:01]} 4. cxd5 {[%clk 0:02:59]}  exd5 {[%clk 0:03:02]} 5. Bg5 {[%clk 0:02:59]}  c6 {[%clk 0:03:02]} 6. Qc2 {[%clk 0:02:59]}  Be7 {[%clk 0:03:00]} 7. e3 {[%clk 0:03:00]}  O-O {[%clk 0:03:00]} 8. Bd3 {[%clk 0:03:00]}  h6 {[%clk 0:03:00]} 9. Bf4 {[%clk 0:03:00]}  Nbd7 {[%clk 0:02:59]} 10. h3 {[%clk 0:02:59]}  Re8 {[%clk 0:02:58]} 11. Nf3 {[%clk 0:03:00]}  Nf8 {[%clk 0:02:59]} 12. O-O-O {[%clk 0:03:00]}  Ne6 {[%clk 0:02:57]} 13. Be5 {[%clk 0:02:58]}  b5 {[%clk 0:02:51]} 14. g4 {[%clk 0:02:58]}  b4 {[%clk 0:02:51]} 15. Na4 {[%clk 0:02:58]}  Ne4 {[%clk 0:02:50]} 16. h4 {[%clk 0:02:47]}  Qa5 {[%clk 0:02:49]} 17. g5 {[%clk 0:02:37]}  h5 {[%clk 0:02:40]} 18. Bxe4 {[%clk 0:02:22]}  dxe4 {[%clk 0:02:39]} 19. Nd2 {[%clk 0:02:23]}  Bb7 {[%clk 0:02:00]} 20. Nxe4 {[%clk 0:02:20]}  c5 {[%clk 0:01:51]} 21. d5 {[%clk 0:02:19]}  c4 {[%clk 0:01:52]} 22. Nf6+ {[%clk 0:02:12]}  Bxf6 {[%clk 0:01:39]} 23. gxf6 {[%clk 0:02:11]}  Bxd5 {[%clk 0:01:25]} 24. Rhg1 {[%clk 0:02:09]}  Bf3 {[%clk 0:01:25]} 25. Bd4 {[%clk 0:00:45]}  b3 {[%clk 0:01:13]} 26. axb3 {[%clk 0:00:30]}  cxb3 {[%clk 0:01:12]} 27. Qxb3 {[%clk 0:00:31]}  Rac8+ {[%clk 0:01:06]} 28. Nc3 {[%clk 0:00:29]}  Bxd1 {[%clk 0:01:04]} 29. Qxd1 {[%clk 0:00:21]}  Qf5 {[%clk 0:01:03]} 30. fxg7 {[%clk 0:00:13]}  Qxf2 {[%clk 0:01:02]} 31. Qxh5 {[%clk 0:00:09]}  Qxg1+ {[%clk 0:01:00]} 32. Kd2 {[%clk 0:00:09]}  Nxg7 {[%clk 0:00:57]} 33. Qh6 {[%clk 0:00:08]}  Qg6 {[%clk 0:00:54]} 34. Qf4 {[%clk 0:00:08]}  Ne6 {[%clk 0:00:52]} 0-1


[Site "https://www.chess.com"]

[Event "Titled Tuesday Blitz June 28 Early 2022"]
[White "Boraso, Alessio"]
[Black "Aggelis, Nikolaos"]
[WhiteFideId "848077"]
[BlackFideId "4213220"]
[WhiteElo "2286"]
[BlackElo "2154"]
[Result "0-1"]
[Round "04"]
[TimeControl "180+1"]
[Date "2022.06.28"]
[WhiteClock "0:00:02"]
[BlackClock "0:00:55"]

1. g3 {[%clk 0:03:00]}  d5 {[%clk 0:02:59]} 2. Bg2 {[%clk 0:03:01]}  Nf6 {[%clk 0:02:59]} 3. Nf3 {[%clk 0:03:02]}  g6 {[%clk 0:02:59]} 4. O-O {[%clk 0:03:02]}  Bg7 {[%clk 0:03:00]} 5. d3 {[%clk 0:03:01]}  O-O {[%clk 0:03:01]} 6. Nbd2 {[%clk 0:02:58]}  Nc6 {[%clk 0:03:00]} 7. e4 {[%clk 0:02:57]}  e5 {[%clk 0:03:01]} 8. c3 {[%clk 0:02:53]}  a5 {[%clk 0:03:00]} 9. Qe2 {[%clk 0:02:47]}  Re8 {[%clk 0:02:59]} 10. b3 {[%clk 0:02:42]}  b6 {[%clk 0:02:57]} 11. Re1 {[%clk 0:02:21]}  Ba6 {[%clk 0:02:54]} 12. c4 {[%clk 0:02:21]}  dxc4 {[%clk 0:02:53]} 13. dxc4 {[%clk 0:02:18]}  Nd7 {[%clk 0:02:45]} 14. Bb2 {[%clk 0:02:16]}  Nc5 {[%clk 0:02:39]} 15. Red1 {[%clk 0:02:13]}  Qf6 {[%clk 0:02:38]} 16. Nf1 {[%clk 0:02:09]}  Ne6 {[%clk 0:02:38]} 17. Ne3 {[%clk 0:02:07]}  Ned4 {[%clk 0:02:39]} 18. Nxd4 {[%clk 0:02:05]}  Nxd4 {[%clk 0:02:37]} 19. Bxd4 {[%clk 0:01:55]}  exd4 {[%clk 0:02:38]} 20. Nd5 {[%clk 0:01:55]}  Qd6 {[%clk 0:02:38]} 21. Rd3 {[%clk 0:01:53]}  c5 {[%clk 0:02:36]} 22. f4 {[%clk 0:01:46]}  Bb7 {[%clk 0:02:35]} 23. Qf3 {[%clk 0:01:44]}  Bxd5 {[%clk 0:02:35]} 24. cxd5 {[%clk 0:01:42]}  f6 {[%clk 0:02:28]} 25. Re1 {[%clk 0:01:39]}  Rac8 {[%clk 0:02:27]} 26. Bh3 {[%clk 0:01:37]}  Rc7 {[%clk 0:02:27]} 27. Be6+ {[%clk 0:01:36]}  Rxe6 {[%clk 0:02:23]} 28. dxe6 {[%clk 0:01:37]}  Qxe6 {[%clk 0:02:23]} 29. e5 {[%clk 0:01:31]}  fxe5 {[%clk 0:02:22]} 30. fxe5 {[%clk 0:01:32]}  Rf7 {[%clk 0:02:21]} 31. Qg2 {[%clk 0:01:18]}  Qf5 {[%clk 0:02:17]} 32. Rd2 {[%clk 0:01:10]}  Qe6 {[%clk 0:01:52]} 33. Rf2 {[%clk 0:00:59]}  Rxf2 {[%clk 0:01:51]} 34. Kxf2 {[%clk 0:01:00]}  h5 {[%clk 0:01:52]} 35. Qe4 {[%clk 0:00:53]}  Kh7 {[%clk 0:01:51]} 36. h4 {[%clk 0:00:52]}  Bh6 {[%clk 0:01:41]} 37. Kg2 {[%clk 0:00:52]}  Bg7 {[%clk 0:01:37]} 38. Re2 {[%clk 0:00:51]}  Bh6 {[%clk 0:01:35]} 39. Rf2 {[%clk 0:00:47]}  Bg7 {[%clk 0:01:36]} 40. Re2 {[%clk 0:00:38]}  Kg8 {[%clk 0:01:26]} 41. Qd3 {[%clk 0:00:36]}  Qd5+ {[%clk 0:01:23]} 42. Kh2 {[%clk 0:00:36]}  Qe6 {[%clk 0:01:22]} 43. Qc4 {[%clk 0:00:34]}  Qxc4 {[%clk 0:01:21]} 44. bxc4 {[%clk 0:00:35]}  Kf7 {[%clk 0:01:19]} 45. Kg2 {[%clk 0:00:31]}  Ke6 {[%clk 0:01:19]} 46. Kf3 {[%clk 0:00:30]}  Bxe5 {[%clk 0:01:18]} 47. Rb2 {[%clk 0:00:31]}  Bc7 {[%clk 0:01:18]} 48. Ke4 {[%clk 0:00:31]}  Kd6 {[%clk 0:01:14]} 49. a4 {[%clk 0:00:26]}  Kc6 {[%clk 0:01:12]} 50. Rb3 {[%clk 0:00:25]}  Bd6 {[%clk 0:01:10]} 51. Rf3 {[%clk 0:00:25]}  Kc7 {[%clk 0:01:07]} 52. Rf7+ {[%clk 0:00:25]}  Kc8 {[%clk 0:01:06]} 53. Rg7 {[%clk 0:00:20]}  Bxg3 {[%clk 0:01:05]} 54. Rxg6 {[%clk 0:00:20]}  Bxh4 {[%clk 0:01:03]} 55. Rxb6 {[%clk 0:00:21]}  Be7 {[%clk 0:01:01]} 56. Rh6 {[%clk 0:00:12]}  h4 {[%clk 0:01:00]} 57. Rh7 {[%clk 0:00:07]}  Kd7 {[%clk 0:01:00]} 58. Rh6 {[%clk 0:00:08]}  Bd8 {[%clk 0:00:58]} 59. Kd5 {[%clk 0:00:06]}  d3 {[%clk 0:00:57]} 60. Rd6+ {[%clk 0:00:02]}  Kc7 {[%clk 0:00:56]} 61. Rc6+ {[%clk 0:00:02]}  Kd7 {[%clk 0:00:55]} 62. Rd6+ {[%clk 0:00:02]}  Ke7 {[%clk 0:00:55]} 0-1


[Site "https://www.chess.com"]

[Event "Titled Tuesday Blitz June 28 Early 2022"]
[White "Bortnyk, Mykola"]
[Black "Papp, Levente"]
[WhiteFideId "14120836"]
[BlackFideId "751243"]
[WhiteElo "2582"]
[BlackElo "2308"]
[Result "1-0"]
[Round "04"]
[TimeControl "180+1"]
[Date "2022.06.28"]
[WhiteClock "0:00:36"]
[BlackClock "0:00:04"]

1. e4 {[%clk 0:03:00]}  e6 {[%clk 0:03:00]} 2. d4 {[%clk 0:02:59]}  d5 {[%clk 0:03:00]} 3. Nc3 {[%clk 0:02:59]}  Bb4 {[%clk 0:03:00]} 4. exd5 {[%clk 0:02:59]}  exd5 {[%clk 0:03:00]} 5. Bd3 {[%clk 0:02:59]}  Nc6 {[%clk 0:03:01]} 6. Be3 {[%clk 0:02:54]}  Nge7 {[%clk 0:02:54]} 7. Qf3 {[%clk 0:02:51]}  Be6 {[%clk 0:02:43]} 8. Ne2 {[%clk 0:02:50]}  Qd7 {[%clk 0:02:43]} 9. h3 {[%clk 0:02:50]}  Bf5 {[%clk 0:02:40]} 10. O-O-O {[%clk 0:02:49]}  O-O-O {[%clk 0:02:22]} 11. a3 {[%clk 0:02:40]}  Bxc3 {[%clk 0:02:15]} 12. Nxc3 {[%clk 0:02:41]}  Bxd3 {[%clk 0:02:08]} 13. Rxd3 {[%clk 0:02:42]}  Qf5 {[%clk 0:02:08]} 14. Qd1 {[%clk 0:02:21]}  h5 {[%clk 0:01:57]} 15. Re1 {[%clk 0:02:15]}  Rde8 {[%clk 0:01:37]} 16. g4 {[%clk 0:02:04]}  hxg4 {[%clk 0:01:28]} 17. hxg4 {[%clk 0:02:05]}  Qd7 {[%clk 0:01:27]} 18. Qf3 {[%clk 0:02:04]}  f6 {[%clk 0:01:23]} 19. b4 {[%clk 0:02:04]}  Rh4 {[%clk 0:01:15]} 20. g5 {[%clk 0:01:51]}  Qg4 {[%clk 0:01:09]} 21. Qxg4+ {[%clk 0:01:40]}  Rxg4 {[%clk 0:01:10]} 22. f3 {[%clk 0:01:41]}  Rg2 {[%clk 0:01:07]} 23. gxf6 {[%clk 0:01:35]}  gxf6 {[%clk 0:01:07]} 24. b5 {[%clk 0:01:35]}  Nd8 {[%clk 0:00:48]} 25. Bf4 {[%clk 0:01:27]}  Kd7 {[%clk 0:00:46]} 26. Rde3 {[%clk 0:01:06]}  c6 {[%clk 0:00:16]} 27. Bb8 {[%clk 0:01:02]}  Rgg8 {[%clk 0:00:12]} 28. Bxa7 {[%clk 0:01:00]}  Nf5 {[%clk 0:00:12]} 29. Rxe8 {[%clk 0:00:58]}  Rxe8 {[%clk 0:00:13]} 30. Rh1 {[%clk 0:00:54]}  Ne6 {[%clk 0:00:12]} 31. Ne2 {[%clk 0:00:42]}  Ra8 {[%clk 0:00:11]} 32. Rh7+ {[%clk 0:00:42]}  Ne7 {[%clk 0:00:11]} 33. Bc5 {[%clk 0:00:39]}  Nxc5 {[%clk 0:00:11]} 34. dxc5 {[%clk 0:00:40]}  Rxa3 {[%clk 0:00:10]} 35. Nd4 {[%clk 0:00:40]}  Ke8 {[%clk 0:00:07]} 36. b6 {[%clk 0:00:39]}  Rc3 {[%clk 0:00:07]} 37. Rh8+ {[%clk 0:00:34]}  Kf7 {[%clk 0:00:06]} 38. Rb8 {[%clk 0:00:35]}  Rxc5 {[%clk 0:00:07]} 39. Rxb7 {[%clk 0:00:35]}  Ke8 {[%clk 0:00:07]} 40. Rxe7+ {[%clk 0:00:35]}  Kd8 {[%clk 0:00:04]} 41. b7 {[%clk 0:00:36]} 1-0


[Site "https://www.chess.com"]

[Event "Titled Tuesday Blitz June 28 Early 2022"]
[White "Bortnyk, Olexandr"]
[Black "Riehle, Marco"]
[WhiteFideId "14120828"]
[BlackFideId "12904392"]
[WhiteElo "2723"]
[BlackElo "2462"]
[Result "1-0"]
[Round "04"]
[TimeControl "180+1"]
[Date "2022.06.28"]
[WhiteClock "0:00:43"]
[BlackClock "0:00:01"]

1. d4 {[%clk 0:03:00]}  d5 {[%clk 0:02:59]} 2. Nc3 {[%clk 0:03:01]}  Nf6 {[%clk 0:02:58]} 3. Bf4 {[%clk 0:03:01]}  e6 {[%clk 0:02:58]} 4. Nb5 {[%clk 0:03:01]}  Na6 {[%clk 0:02:58]} 5. e3 {[%clk 0:03:02]}  c5 {[%clk 0:02:53]} 6. Nf3 {[%clk 0:03:00]}  Be7 {[%clk 0:02:54]} 7. c3 {[%clk 0:03:00]}  O-O {[%clk 0:02:53]} 8. Ne5 {[%clk 0:03:00]}  Bd7 {[%clk 0:02:50]} 9. Nxd7 {[%clk 0:03:00]}  Qxd7 {[%clk 0:02:51]} 10. a4 {[%clk 0:03:01]}  Ne4 {[%clk 0:02:49]} 11. Bd3 {[%clk 0:03:01]}  Nd6 {[%clk 0:02:48]} 12. O-O {[%clk 0:02:55]}  c4 {[%clk 0:02:43]} 13. Bc2 {[%clk 0:02:47]}  Nxb5 {[%clk 0:02:39]} 14. axb5 {[%clk 0:02:48]}  Qxb5 {[%clk 0:02:38]} 15. e4 {[%clk 0:02:36]}  Rfe8 {[%clk 0:02:17]} 16. Ba4 {[%clk 0:02:29]}  Qxb2 {[%clk 0:02:17]} 17. Bxe8 {[%clk 0:02:30]}  Rxe8 {[%clk 0:02:18]} 18. exd5 {[%clk 0:02:28]}  exd5 {[%clk 0:02:16]} 19. Qa4 {[%clk 0:02:01]}  Rd8 {[%clk 0:02:00]} 20. Rfb1 {[%clk 0:01:46]}  Qxc3 {[%clk 0:01:57]} 21. Rxb7 {[%clk 0:01:46]}  Bf6 {[%clk 0:01:46]} 22. Qxa6 {[%clk 0:01:26]}  Qxd4 {[%clk 0:01:44]} 23. Bc7 {[%clk 0:01:20]}  Re8 {[%clk 0:01:16]} 24. Rf1 {[%clk 0:01:16]}  c3 {[%clk 0:01:15]} 25. Qc6 {[%clk 0:01:06]}  Rf8 {[%clk 0:01:12]} 26. Bd6 {[%clk 0:01:05]}  Rd8 {[%clk 0:00:06]} 27. Be7 {[%clk 0:01:05]}  Bxe7 {[%clk 0:00:06]} 28. Rxe7 {[%clk 0:01:06]}  g6 {[%clk 0:00:06]} 29. Rc1 {[%clk 0:00:44]}  Qb4 {[%clk 0:00:04]} 30. Re8+ {[%clk 0:00:42]}  Rxe8 {[%clk 0:00:03]} 31. Qxe8+ {[%clk 0:00:43]}  Qf8 {[%clk 0:00:01]} 32. Qxf8+ {[%clk 0:00:43]} 1-0


[Site "https://www.chess.com"]

[Event "Titled Tuesday Blitz June 28 Early 2022"]
[White "Buscar, Michael"]
[Black "Ziatdinov, Raset"]
[WhiteFideId "2603616"]
[BlackFideId "2015323"]
[WhiteElo "2010"]
[BlackElo "2220"]
[Result "1-0"]
[Round "04"]
[TimeControl "180+1"]
[Date "2022.06.28"]
[WhiteClock "0:00:09"]
[BlackClock "0:00:01"]

1. d4 {[%clk 0:02:57]}  Nf6 {[%clk 0:02:59]} 2. c4 {[%clk 0:02:57]}  e6 {[%clk 0:02:59]} 3. Nc3 {[%clk 0:02:56]}  Bb4 {[%clk 0:03:00]} 4. Qc2 {[%clk 0:02:54]}  d5 {[%clk 0:02:55]} 5. e3 {[%clk 0:02:55]}  c5 {[%clk 0:02:55]} 6. a3 {[%clk 0:02:50]}  Bxc3+ {[%clk 0:02:55]} 7. Qxc3 {[%clk 0:02:50]}  cxd4 {[%clk 0:02:55]} 8. Qxd4 {[%clk 0:02:48]}  Nc6 {[%clk 0:02:54]} 9. Qd1 {[%clk 0:02:46]}  O-O {[%clk 0:02:46]} 10. cxd5 {[%clk 0:02:43]}  Nxd5 {[%clk 0:02:45]} 11. Nf3 {[%clk 0:02:41]}  e5 {[%clk 0:02:27]} 12. Be2 {[%clk 0:02:36]}  Bg4 {[%clk 0:02:26]} 13. O-O {[%clk 0:02:27]}  Nf6 {[%clk 0:02:13]} 14. h3 {[%clk 0:02:09]}  Qxd1 {[%clk 0:02:10]} 15. Rxd1 {[%clk 0:02:08]}  Bxf3 {[%clk 0:02:10]} 16. Bxf3 {[%clk 0:02:07]}  e4 {[%clk 0:02:11]} 17. Be2 {[%clk 0:02:04]}  Rfd8 {[%clk 0:02:12]} 18. Bd2 {[%clk 0:02:02]}  Ne5 {[%clk 0:02:08]} 19. Bc3 {[%clk 0:02:01]}  Nd3 {[%clk 0:02:02]} 20. f3 {[%clk 0:01:57]}  Nc5 {[%clk 0:01:54]} 21. Rxd8+ {[%clk 0:01:41]}  Rxd8 {[%clk 0:01:55]} 22. Rd1 {[%clk 0:01:40]}  Rxd1+ {[%clk 0:01:37]} 23. Bxd1 {[%clk 0:01:40]}  Nd5 {[%clk 0:01:34]} 24. Bd4 {[%clk 0:01:36]}  b6 {[%clk 0:01:11]} 25. Kf2 {[%clk 0:01:04]}  f5 {[%clk 0:01:02]} 26. g4 {[%clk 0:01:02]}  fxg4 {[%clk 0:01:00]} 27. fxg4 {[%clk 0:00:56]}  Ne6 {[%clk 0:00:50]} 28. Bb3 {[%clk 0:00:54]}  Nec7 {[%clk 0:00:43]} 29. Be5 {[%clk 0:00:47]}  Kf8 {[%clk 0:00:42]} 30. Bc2 {[%clk 0:00:47]}  g6 {[%clk 0:00:22]} 31. Bxe4 {[%clk 0:00:45]}  Ke7 {[%clk 0:00:20]} 32. h4 {[%clk 0:00:35]}  Ke6 {[%clk 0:00:18]} 33. Bd4 {[%clk 0:00:31]}  Nf6 {[%clk 0:00:17]} 34. Bf3 {[%clk 0:00:28]}  h6 {[%clk 0:00:13]} 35. Kg3 {[%clk 0:00:23]}  Ncd5 {[%clk 0:00:03]} 36. a4 {[%clk 0:00:19]}  Nb4 {[%clk 0:00:01]} 37. a5 {[%clk 0:00:17]}  bxa5 {[%clk 0:00:02]} 38. Bxa7 {[%clk 0:00:17]}  Nd3 {[%clk 0:00:02]} 39. Bd4 {[%clk 0:00:15]}  a4 {[%clk 0:00:03]} 40. Be2 {[%clk 0:00:13]}  Nc1 {[%clk 0:00:02]} 41. Bc4+ {[%clk 0:00:13]}  Ke7 {[%clk 0:00:01]} 42. Kf3 {[%clk 0:00:12]}  Nd7 {[%clk 0:00:01]} 43. Bc3 {[%clk 0:00:10]}  Nb3 {[%clk 0:00:01]} 44. Bb4+ {[%clk 0:00:09]} 1-0


[Site "https://www.chess.com"]

[Event "Titled Tuesday Blitz June 28 Early 2022"]
[White "Chen, Qi b"]
[Black "Khamdamova, Afruza"]
[WhiteFideId "8614733"]
[BlackFideId "14210444"]
[WhiteElo "2432"]
[BlackElo "1660"]
[Result "1-0"]
[Round "04"]
[TimeControl "180+1"]
[Date "2022.06.28"]
[WhiteClock "0:00:09"]
[BlackClock "0:00:07"]

1. d4 {[%clk 0:03:00]}  Nf6 {[%clk 0:02:59]} 2. c4 {[%clk 0:03:01]}  e6 {[%clk 0:02:58]} 3. Nc3 {[%clk 0:03:02]}  d5 {[%clk 0:02:57]} 4. Nf3 {[%clk 0:03:00]}  Be7 {[%clk 0:02:57]} 5. g3 {[%clk 0:02:59]}  dxc4 {[%clk 0:02:56]} 6. Bg2 {[%clk 0:03:00]}  c5 {[%clk 0:02:55]} 7. O-O {[%clk 0:02:59]}  Nc6 {[%clk 0:02:54]} 8. dxc5 {[%clk 0:02:43]}  Qxd1 {[%clk 0:02:53]} 9. Nxd1 {[%clk 0:02:42]}  Bxc5 {[%clk 0:02:52]} 10. Be3 {[%clk 0:02:41]}  Be7 {[%clk 0:02:32]} 11. Rc1 {[%clk 0:02:40]}  Nd5 {[%clk 0:02:31]} 12. Rxc4 {[%clk 0:02:39]}  Nxe3 {[%clk 0:02:30]} 13. Nxe3 {[%clk 0:02:40]}  O-O {[%clk 0:02:30]} 14. Nd4 {[%clk 0:02:37]}  Nxd4 {[%clk 0:02:23]} 15. Rxd4 {[%clk 0:02:38]}  e5 {[%clk 0:02:22]} 16. Rd2 {[%clk 0:02:34]}  Rb8 {[%clk 0:02:19]} 17. Rfd1 {[%clk 0:02:01]}  Be6 {[%clk 0:02:17]} 18. Bd5 {[%clk 0:02:01]}  Bxd5 {[%clk 0:01:54]} 19. Nxd5 {[%clk 0:01:58]}  Bg5 {[%clk 0:01:50]} 20. e3 {[%clk 0:01:56]}  f5 {[%clk 0:01:47]} 21. f4 {[%clk 0:01:24]}  exf4 {[%clk 0:01:46]} 22. gxf4 {[%clk 0:01:24]}  Bf6 {[%clk 0:01:43]} 23. Kf2 {[%clk 0:01:24]}  Rbc8 {[%clk 0:01:36]} 24. Kf3 {[%clk 0:01:22]}  Rc6 {[%clk 0:01:29]} 25. b4 {[%clk 0:01:22]}  g6 {[%clk 0:01:23]} 26. a4 {[%clk 0:01:19]}  Kg7 {[%clk 0:01:22]} 27. a5 {[%clk 0:01:05]}  Re8 {[%clk 0:01:08]} 28. b5 {[%clk 0:01:01]}  Rce6 {[%clk 0:01:06]} 29. Rd3 {[%clk 0:01:00]}  Bd8 {[%clk 0:01:02]} 30. b6 {[%clk 0:00:41]}  axb6 {[%clk 0:01:02]} 31. axb6 {[%clk 0:00:41]}  Bxb6 {[%clk 0:00:57]} 32. Rb1 {[%clk 0:00:26]}  Bc5 {[%clk 0:00:52]} 33. Rxb7+ {[%clk 0:00:26]}  Kh6 {[%clk 0:00:52]} 34. Rc7 {[%clk 0:00:22]}  Bd6 {[%clk 0:00:51]} 35. Rf7 {[%clk 0:00:22]}  Rc8 {[%clk 0:00:34]} 36. h4 {[%clk 0:00:18]}  Bf8 {[%clk 0:00:27]} 37. Nf6 {[%clk 0:00:17]}  Re7 {[%clk 0:00:25]} 38. Rd7 {[%clk 0:00:17]}  Rxd7 {[%clk 0:00:22]} 39. Rxd7 {[%clk 0:00:15]}  Bg7 {[%clk 0:00:21]} 40. Nd5 {[%clk 0:00:15]}  Re8 {[%clk 0:00:18]} 41. Rb7 {[%clk 0:00:13]}  Re6 {[%clk 0:00:18]} 42. Ne7 {[%clk 0:00:12]}  Rxe7 {[%clk 0:00:12]} 43. Rxe7 {[%clk 0:00:13]}  Bf6 {[%clk 0:00:13]} 44. Rf7 {[%clk 0:00:05]}  Bxh4 {[%clk 0:00:13]} 45. Ke2 {[%clk 0:00:05]}  Bd8 {[%clk 0:00:13]} 46. Kd3 {[%clk 0:00:05]}  Bb6 {[%clk 0:00:13]} 47. Re7 {[%clk 0:00:05]}  Bc5 {[%clk 0:00:13]} 48. Rc7 {[%clk 0:00:05]}  Bd6 {[%clk 0:00:13]} 49. Rd7 {[%clk 0:00:06]}  Bc5 {[%clk 0:00:12]} 50. Ke2 {[%clk 0:00:06]}  Bb6 {[%clk 0:00:11]} 51. Rd6 {[%clk 0:00:06]}  Bc7 {[%clk 0:00:10]} 52. Rc6 {[%clk 0:00:06]}  Bb8 {[%clk 0:00:10]} 53. Rc8 {[%clk 0:00:06]}  Ba7 {[%clk 0:00:10]} 54. Rc7 {[%clk 0:00:07]}  Bb6 {[%clk 0:00:10]} 55. Rd7 {[%clk 0:00:07]}  Bc5 {[%clk 0:00:10]} 56. Kd3 {[%clk 0:00:07]}  Bb6 {[%clk 0:00:10]} 57. Rb7 {[%clk 0:00:07]}  Bc5 {[%clk 0:00:10]} 58. Rc7 {[%clk 0:00:07]}  Bd6 {[%clk 0:00:10]} 59. Rf7 {[%clk 0:00:08]}  Bc5 {[%clk 0:00:09]} 60. e4 {[%clk 0:00:08]}  fxe4+ {[%clk 0:00:09]} 61. Kxe4 {[%clk 0:00:09]}  Bd6 {[%clk 0:00:09]} 62. Kd5 {[%clk 0:00:09]}  Bc7 {[%clk 0:00:08]} 63. Ke6 {[%clk 0:00:10]}  Bb8 {[%clk 0:00:07]} 64. Rd7 {[%clk 0:00:09]}  Ba7 {[%clk 0:00:07]} 65. Rxa7 {[%clk 0:00:09]} 1-0


[Site "https://www.chess.com"]